[Event "Early-Titled-Tuesday-Blitz-April-23-2024"]
[Site "Chess.com"]
[Date "2024.04.23"]
[Round "10"]
[White "BozeKat"]
[Black "David_George21"]
[Result "0-1"]
[WhiteElo "2113"]
[BlackElo "2330"]
[TimeControl "180+1"]
[EndTime "10:00:43 PDT"]
[Termination "David_George21 won on time"]

1. d4 {[%clk 0:03:00.9]} 1... Nf6 {[%clk 0:02:59.8]} 2. c4 {[%clk 0:03:00.1]}
2... e6 {[%clk 0:03:00.2]} 3. g3 {[%clk 0:03:00]} 3... d5 {[%clk 0:02:59.8]} 4.
Bg2 {[%clk 0:02:59.9]} 4... dxc4 {[%clk 0:03:00.5]} 5. Qc2 {[%clk 0:02:54.2]}
5... Qxd4 {[%clk 0:02:49.9]} 6. Be3 {[%clk 0:02:53.8]} 6... Qd8 {[%clk
0:02:46.2]} 7. Qxc4 {[%clk 0:02:46.3]} 7... Bd6 {[%clk 0:02:46]} 8. Nc3 {[%clk
0:02:41.9]} 8... O-O {[%clk 0:02:45.6]} 9. Nf3 {[%clk 0:02:39.8]} 9... Nc6
{[%clk 0:02:38.5]} 10. O-O {[%clk 0:02:37.4]} 10... a6 {[%clk 0:02:38.9]} 11.
Rfd1 {[%clk 0:02:33.4]} 11... Qe7 {[%clk 0:02:38.9]} 12. Rac1 {[%clk 0:02:19.7]}
12... Bd7 {[%clk 0:02:37.2]} 13. Ng5 {[%clk 0:02:05.7]} 13... h6 {[%clk
0:02:23.5]} 14. Nge4 {[%clk 0:02:04.4]} 14... Nxe4 {[%clk 0:02:18.9]} 15. Nxe4
{[%clk 0:02:05.3]} 15... Ne5 {[%clk 0:02:19.1]} 16. Qd4 {[%clk 0:01:39.4]} 16...
Bc6 {[%clk 0:01:43.2]} 17. Nxd6 {[%clk 0:01:32.8]} 17... cxd6 {[%clk 0:01:43.4]}
18. Qxd6 {[%clk 0:01:20.5]} 18... Qxd6 {[%clk 0:01:43.6]} 19. Rxd6 {[%clk
0:01:20.9]} 19... Rad8 {[%clk 0:01:42.2]} 20. Rcd1 {[%clk 0:01:08.2]} 20... Rxd6
{[%clk 0:01:41.8]} 21. Rxd6 {[%clk 0:01:08.3]} 21... Nc4 {[%clk 0:01:42.4]} 22.
Rd3 {[%clk 0:00:58]} 22... Nxb2 {[%clk 0:01:31.7]} 23. Rb3 {[%clk 0:00:57.4]}
23... Nc4 {[%clk 0:01:30]} 24. Bxc6 {[%clk 0:00:53.8]} 24... bxc6 {[%clk
0:01:30.9]} 25. Rc3 {[%clk 0:00:45.2]} 25... Nxe3 {[%clk 0:01:31]} 26. Rxe3
{[%clk 0:00:45.3]} 26... Rb8 {[%clk 0:01:12.5]} 27. Ra3 {[%clk 0:00:42.6]} 27...
Rb6 {[%clk 0:01:06.3]} 28. Ra5 {[%clk 0:00:36.8]} 28... Kf8 {[%clk 0:01:06.4]}
29. Kg2 {[%clk 0:00:34]} 29... Ke7 {[%clk 0:01:06.6]} 30. Kf3 {[%clk 0:00:34.2]}
30... Kd7 {[%clk 0:01:06.7]} 31. Ke4 {[%clk 0:00:33.7]} 31... Kc7 {[%clk
0:00:59.4]} 32. Ke5 {[%clk 0:00:25.7]} 32... Rb5+ {[%clk 0:00:58.5]} 33. Rxb5
{[%clk 0:00:23.6]} 33... cxb5 {[%clk 0:00:58.2]} 34. h4 {[%clk 0:00:17.2]} 34...
Kc6 {[%clk 0:00:55.2]} 35. h5 {[%clk 0:00:16.8]} 35... a5 {[%clk 0:00:54.1]} 36.
f4 {[%clk 0:00:14.7]} 36... Kc5 {[%clk 0:00:50.5]} 37. g4 {[%clk 0:00:12.1]}
37... b4 {[%clk 0:00:50.4]} 38. g5 {[%clk 0:00:07]} 38... a4 {[%clk 0:00:48.3]}
39. f5 {[%clk 0:00:02.5]} 39... exf5 {[%clk 0:00:22.2]} 40. Kxf5 {[%clk
0:00:02.2]} 40... hxg5 {[%clk 0:00:20.6]} 41. Kxg5 {[%clk 0:00:01.7]} 41... b3
{[%clk 0:00:21.1]} 42. axb3 {[%clk 0:00:01.4]} 42... axb3 {[%clk 0:00:22]} 0-1

[Event "Early-Titled-Tuesday-Blitz-April-23-2024"]
[Site "Chess.com"]
[Date "2024.04.23"]
[Round "10"]
[White "sathvikadiga"]
[Black "Larkin-Vladislav"]
[Result "0-1"]
[WhiteElo "2616"]
[BlackElo "2860"]
[TimeControl "180+1"]
[EndTime "10:00:48 PDT"]
[Termination "Larkin-Vladislav won by checkmate"]

1. d4 {[%clk 0:03:00.9]} 1... Nc6 {[%clk 0:02:59.7]} 2. Nc3 {[%clk 0:02:54.4]}
2... Nf6 {[%clk 0:02:55]} 3. e4 {[%clk 0:02:52.9]} 3... d6 {[%clk 0:02:53.8]} 4.
Nf3 {[%clk 0:02:51.7]} 4... g6 {[%clk 0:02:53.1]} 5. Bb5 {[%clk 0:02:50.3]} 5...
a6 {[%clk 0:02:51.5]} 6. Bxc6+ {[%clk 0:02:49.5]} 6... bxc6 {[%clk 0:02:52.4]}
7. O-O {[%clk 0:02:50]} 7... Bg7 {[%clk 0:02:51.4]} 8. Bf4 {[%clk 0:02:47.9]}
8... O-O {[%clk 0:02:51.2]} 9. Qe2 {[%clk 0:02:46.7]} 9... Rb8 {[%clk
0:02:50.5]} 10. b3 {[%clk 0:02:46.2]} 10... Nd7 {[%clk 0:02:50.2]} 11. Rad1
{[%clk 0:02:44.6]} 11... c5 {[%clk 0:02:43.7]} 12. e5 {[%clk 0:02:35.3]} 12...
Bb7 {[%clk 0:02:25.1]} 13. d5 {[%clk 0:02:19.1]} 13... Nb6 {[%clk 0:02:19.6]}
14. Rfe1 {[%clk 0:02:16.2]} 14... a5 {[%clk 0:02:15.2]} 15. a4 {[%clk
0:02:14.1]} 15... Ra8 {[%clk 0:02:15]} 16. Qe3 {[%clk 0:02:07.1]} 16... f6
{[%clk 0:01:55.7]} 17. e6 {[%clk 0:01:33.4]} 17... g5 {[%clk 0:01:38.1]} 18. Bg3
{[%clk 0:01:32.5]} 18... Qe8 {[%clk 0:01:37.7]} 19. h4 {[%clk 0:01:05.7]} 19...
h6 {[%clk 0:01:37.6]} 20. Qd3 {[%clk 0:00:57.8]} 20... Qh5 {[%clk 0:01:31.8]}
21. Qf5 {[%clk 0:00:53.8]} 21... Ba6 {[%clk 0:00:34.5]} 22. Bh2 {[%clk
0:00:29.9]} 22... Qe8 {[%clk 0:00:29.6]} 23. g4 {[%clk 0:00:27.4]} 23... Rd8
{[%clk 0:00:25.1]} 24. Ne4 {[%clk 0:00:24.6]} 24... Bb7 {[%clk 0:00:21.8]} 25.
c4 {[%clk 0:00:24]} 25... c6 {[%clk 0:00:21.5]} 26. Nxd6 {[%clk 0:00:14.8]}
26... Rxd6 {[%clk 0:00:11.5]} 27. Bxd6 {[%clk 0:00:15.1]} 27... exd6 {[%clk
0:00:12.4]} 28. e7 {[%clk 0:00:12.2]} 28... Rf7 {[%clk 0:00:12.6]} 29. Qg6
{[%clk 0:00:12.4]} 29... cxd5 {[%clk 0:00:10]} 30. cxd5 {[%clk 0:00:08.8]} 30...
Nxd5 {[%clk 0:00:10.4]} 31. hxg5 {[%clk 0:00:06.2]} 31... hxg5 {[%clk 0:00:07]}
32. Nh2 {[%clk 0:00:05]} 32... Nf4 {[%clk 0:00:07.4]} 33. Qf5 {[%clk 0:00:05.2]}
33... Rxe7 {[%clk 0:00:07.3]} 34. Rf1 {[%clk 0:00:03.4]} 34... Nh3# {[%clk
0:00:07]} 0-1

[Event "Early-Titled-Tuesday-Blitz-April-23-2024"]
[Site "Chess.com"]
[Date "2024.04.23"]
[Round "10"]
[White "ImportedItalianMaple"]
[Black "Grossboss19"]
[Result "0-1"]
[WhiteElo "2467"]
[BlackElo "2633"]
[TimeControl "180+1"]
[EndTime "10:00:49 PDT"]
[Termination "Grossboss19 won on time"]

1. e4 {[%clk 0:03:00.9]} 1... e6 {[%clk 0:02:56.8]} 2. d4 {[%clk 0:02:57.1]}
2... d5 {[%clk 0:02:57.1]} 3. Nd2 {[%clk 0:02:57.6]} 3... c5 {[%clk 0:02:54]} 4.
Ngf3 {[%clk 0:02:55.7]} 4... Nc6 {[%clk 0:02:52.7]} 5. Bb5 {[%clk 0:02:51.8]}
5... Nf6 {[%clk 0:02:46.5]} 6. exd5 {[%clk 0:02:49.5]} 6... Nxd5 {[%clk
0:02:44.5]} 7. O-O {[%clk 0:02:48]} 7... Bd7 {[%clk 0:02:41.8]} 8. c4 {[%clk
0:02:45.7]} 8... Nc7 {[%clk 0:02:38.2]} 9. dxc5 {[%clk 0:02:31.5]} 9... Bxc5
{[%clk 0:02:30.1]} 10. Ne4 {[%clk 0:02:31.5]} 10... Be7 {[%clk 0:02:28.1]} 11.
Nd6+ {[%clk 0:02:28.2]} 11... Bxd6 {[%clk 0:02:25.1]} 12. Qxd6 {[%clk
0:02:29.1]} 12... Ne7 {[%clk 0:02:15.5]} 13. Bxd7+ {[%clk 0:02:01.5]} 13... Qxd7
{[%clk 0:02:14.9]} 14. Bf4 {[%clk 0:02:01.5]} 14... Qxd6 {[%clk 0:02:10.6]} 15.
Bxd6 {[%clk 0:02:02.4]} 15... Rc8 {[%clk 0:02:10.8]} 16. Rad1 {[%clk 0:01:57.8]}
16... f6 {[%clk 0:02:05.9]} 17. Ba3 {[%clk 0:01:37.5]} 17... Nc6 {[%clk
0:01:52.1]} 18. b4 {[%clk 0:01:18.1]} 18... a6 {[%clk 0:01:48.8]} 19. Rfe1
{[%clk 0:01:12.4]} 19... e5 {[%clk 0:01:41.2]} 20. b5 {[%clk 0:01:09.2]} 20...
axb5 {[%clk 0:01:37.8]} 21. Rb1 {[%clk 0:00:50.5]} 21... bxc4 {[%clk 0:01:19.5]}
22. Rxb7 {[%clk 0:00:50.6]} 22... Ne6 {[%clk 0:01:11.5]} 23. Rc1 {[%clk
0:00:42.4]} 23... Rc7 {[%clk 0:01:08.1]} 24. Rb5 {[%clk 0:00:20.6]} 24... Ncd8
{[%clk 0:00:50.2]} 25. Rb8 {[%clk 0:00:17.9]} 25... Kf7 {[%clk 0:00:46]} 26. Nd2
{[%clk 0:00:16.6]} 26... c3 {[%clk 0:00:42.9]} 27. Ne4 {[%clk 0:00:16.7]} 27...
c2 {[%clk 0:00:42.9]} 28. Nd6+ {[%clk 0:00:10]} 28... Kg6 {[%clk 0:00:42.5]} 29.
g3 {[%clk 0:00:07.3]} 29... Nf7 {[%clk 0:00:38.6]} 30. Rxh8 {[%clk 0:00:04.9]}
30... Nxh8 {[%clk 0:00:39.5]} 31. Nb5 {[%clk 0:00:03.7]} 31... Rc8 {[%clk
0:00:36.5]} 32. Nd6 {[%clk 0:00:03.8]} 32... Rc6 {[%clk 0:00:36.4]} 33. Nb5
{[%clk 0:00:04.1]} 33... Nf7 {[%clk 0:00:34]} 34. Bb4 {[%clk 0:00:03.9]} 34...
Nd4 {[%clk 0:00:31.5]} 35. Nxd4 {[%clk 0:00:03.8]} 35... exd4 {[%clk 0:00:32.4]}
36. Kf1 {[%clk 0:00:03.4]} 36... Rc4 {[%clk 0:00:25.3]} 37. a3 {[%clk
0:00:03.3]} 37... Ne5 {[%clk 0:00:24.1]} 38. Ke2 {[%clk 0:00:03.8]} 38... d3+
{[%clk 0:00:17.6]} 39. Kd2 {[%clk 0:00:04.3]} 39... Re4 {[%clk 0:00:16.7]} 40.
f4 {[%clk 0:00:04.9]} 40... Re2+ {[%clk 0:00:16.7]} 41. Kc3 {[%clk 0:00:05.7]}
41... d2 {[%clk 0:00:16.1]} 0-1

[Event "Early-Titled-Tuesday-Blitz-April-23-2024"]
[Site "Chess.com"]
[Date "2024.04.23"]
[Round "10"]
[White "kidagent"]
[Black "Djager97"]
[Result "1/2-1/2"]
[WhiteElo "2362"]
[BlackElo "2530"]
[TimeControl "180+1"]
[EndTime "10:00:50 PDT"]
[Termination "Game drawn by repetition"]

1. e4 {[%clk 0:03:00.9]} 1... e5 {[%clk 0:02:59.9]} 2. Nf3 {[%clk 0:03:01]} 2...
Nc6 {[%clk 0:03:00.5]} 3. Bb5 {[%clk 0:03:01.5]} 3... a6 {[%clk 0:03:00.6]} 4.
Ba4 {[%clk 0:03:01.6]} 4... Nf6 {[%clk 0:03:00.8]} 5. O-O {[%clk 0:03:00.4]}
5... b5 {[%clk 0:03:01.4]} 6. Bb3 {[%clk 0:03:00.1]} 6... Bc5 {[%clk 0:03:02.2]}
7. d3 {[%clk 0:02:59.3]} 7... d6 {[%clk 0:03:02]} 8. c3 {[%clk 0:02:58.1]} 8...
O-O {[%clk 0:03:02]} 9. h3 {[%clk 0:02:58]} 9... Bb6 {[%clk 0:03:02.2]} 10. Re1
{[%clk 0:02:52.4]} 10... Ne7 {[%clk 0:03:00.9]} 11. d4 {[%clk 0:02:49]} 11...
Ng6 {[%clk 0:03:00.8]} 12. Nbd2 {[%clk 0:02:48.2]} 12... Bb7 {[%clk 0:03:00.7]}
13. Bc2 {[%clk 0:02:46.9]} 13... Re8 {[%clk 0:02:54.7]} 14. a4 {[%clk
0:02:34.9]} 14... c5 {[%clk 0:02:48.1]} 15. d5 {[%clk 0:02:32]} 15... c4 {[%clk
0:02:47.9]} 16. Nf1 {[%clk 0:02:29]} 16... Nd7 {[%clk 0:02:34.9]} 17. b3 {[%clk
0:02:25.9]} 17... cxb3 {[%clk 0:02:34.4]} 18. Bxb3 {[%clk 0:02:25.3]} 18... Nc5
{[%clk 0:02:34.9]} 19. Bc2 {[%clk 0:02:23.3]} 19... Qc7 {[%clk 0:02:26]} 20. Bd2
{[%clk 0:02:14.7]} 20... Rac8 {[%clk 0:02:20.3]} 21. axb5 {[%clk 0:02:09.4]}
21... axb5 {[%clk 0:02:20.1]} 22. Rb1 {[%clk 0:02:06.2]} 22... Qd7 {[%clk
0:02:01.1]} 23. Ng3 {[%clk 0:02:01.2]} 23... Nf4 {[%clk 0:01:53]} 24. Bxf4
{[%clk 0:01:46.8]} 24... exf4 {[%clk 0:01:53.9]} 25. Nh5 {[%clk 0:01:46.5]}
25... Ba7 {[%clk 0:01:15.6]} 26. Nxf4 {[%clk 0:01:44.9]} 26... Na4 {[%clk
0:01:16.3]} 27. Bxa4 {[%clk 0:01:43.9]} 27... bxa4 {[%clk 0:01:17.2]} 28. e5
{[%clk 0:01:30.4]} 28... Rxc3 {[%clk 0:00:38.9]} 29. e6 {[%clk 0:01:21]} 29...
fxe6 {[%clk 0:00:34.5]} 30. Nxe6 {[%clk 0:01:09.8]} 30... a3 {[%clk 0:00:21.5]}
31. Rb3 {[%clk 0:01:03.3]} 31... Qc8 {[%clk 0:00:12.6]} 32. Qb1 {[%clk
0:00:52.1]} 32... Bxd5 {[%clk 0:00:08.2]} 33. Rxc3 {[%clk 0:00:34.5]} 33... Qxc3
{[%clk 0:00:09.1]} 34. Nf4 {[%clk 0:00:26.2]} 34... Rxe1+ {[%clk 0:00:08.8]} 35.
Nxe1 {[%clk 0:00:25.9]} 35... a2 {[%clk 0:00:09.3]} 36. Qd1 {[%clk 0:00:18.3]}
36... a1=Q {[%clk 0:00:05.4]} 37. Qxd5+ {[%clk 0:00:17.9]} 37... Kf8 {[%clk
0:00:04.8]} 38. Qxd6+ {[%clk 0:00:14.3]} 38... Kf7 {[%clk 0:00:03.6]} 39. Qe6+
{[%clk 0:00:14.4]} 39... Kf8 {[%clk 0:00:03.5]} 40. Qd6+ {[%clk 0:00:14.3]}
40... Kg8 {[%clk 0:00:02.9]} 41. Qe6+ {[%clk 0:00:11.8]} 41... Kf8 {[%clk
0:00:03]} 42. Qd6+ {[%clk 0:00:11.8]} 1/2-1/2

[Event "Early-Titled-Tuesday-Blitz-April-23-2024"]
[Site "Chess.com"]
[Date "2024.04.23"]
[Round "10"]
[White "manitodeplomo"]
[Black "WiktoriaPOL"]
[Result "1-0"]
[WhiteElo "2629"]
[BlackElo "2416"]
[TimeControl "180+1"]
[EndTime "10:00:53 PDT"]
[Termination "manitodeplomo won by resignation"]

1. d4 {[%clk 0:03:00.9]} 1... Nf6 {[%clk 0:02:59.4]} 2. c4 {[%clk 0:03:00.1]}
2... g6 {[%clk 0:02:59.2]} 3. Nc3 {[%clk 0:02:59]} 3... Bg7 {[%clk 0:02:59.5]}
4. e4 {[%clk 0:02:58.9]} 4... d6 {[%clk 0:02:59.7]} 5. Be2 {[%clk 0:02:59.3]}
5... O-O {[%clk 0:03:00]} 6. Nf3 {[%clk 0:02:59.7]} 6... e5 {[%clk 0:03:00.3]}
7. d5 {[%clk 0:03:00]} 7... a5 {[%clk 0:02:59.4]} 8. Bg5 {[%clk 0:02:58.7]} 8...
h6 {[%clk 0:02:57.5]} 9. Bh4 {[%clk 0:02:58.3]} 9... Na6 {[%clk 0:02:54.2]} 10.
Nd2 {[%clk 0:02:58.1]} 10... Nc5 {[%clk 0:02:51.4]} 11. O-O {[%clk 0:02:56.8]}
11... Qe8 {[%clk 0:02:42.1]} 12. b3 {[%clk 0:02:52.9]} 12... Nh7 {[%clk
0:02:34.4]} 13. a3 {[%clk 0:02:51]} 13... f5 {[%clk 0:02:29.7]} 14. f3 {[%clk
0:02:50.1]} 14... g5 {[%clk 0:02:23.9]} 15. Bf2 {[%clk 0:02:49.7]} 15... Nf6
{[%clk 0:02:20.5]} 16. b4 {[%clk 0:02:48.8]} 16... Na6 {[%clk 0:02:08.8]} 17. c5
{[%clk 0:02:46.3]} 17... Qg6 {[%clk 0:01:48.3]} 18. c6 {[%clk 0:02:34.3]} 18...
g4 {[%clk 0:01:14.8]} 19. exf5 {[%clk 0:02:14.2]} 19... Qxf5 {[%clk 0:01:06.6]}
20. fxg4 {[%clk 0:02:07.1]} 20... Qg6 {[%clk 0:00:43.9]} 21. h3 {[%clk
0:01:32.4]} 21... bxc6 {[%clk 0:00:38.9]} 22. dxc6 {[%clk 0:01:30.9]} 22... Be6
{[%clk 0:00:33.7]} 23. Qb1 {[%clk 0:01:22.1]} 23... e4 {[%clk 0:00:16.8]} 24.
Ndxe4 {[%clk 0:01:19.2]} 24... Nxe4 {[%clk 0:00:16.6]} 25. Qxe4 {[%clk
0:01:19.6]} 25... Qxe4 {[%clk 0:00:14.4]} 26. Nxe4 {[%clk 0:01:20.5]} 26... Bxa1
{[%clk 0:00:14.5]} 27. Rxa1 {[%clk 0:01:21]} 27... axb4 {[%clk 0:00:13.5]} 28.
axb4 {[%clk 0:01:17.6]} 28... Nxb4 {[%clk 0:00:13.4]} 29. Rc1 {[%clk 0:01:14.4]}
29... Bd5 {[%clk 0:00:11.8]} 30. Ng3 {[%clk 0:01:11.1]} 30... Ra2 {[%clk
0:00:10.7]} 31. Kf1 {[%clk 0:00:57.3]} 31... Rc2 {[%clk 0:00:07.3]} 32. Rxc2
{[%clk 0:00:56.3]} 32... Nxc2 {[%clk 0:00:08.2]} 33. Nf5 {[%clk 0:00:56.4]}
33... Bxc6 {[%clk 0:00:07.9]} 34. Ne7+ {[%clk 0:00:56]} 34... Kg7 {[%clk
0:00:07.1]} 35. Nxc6 {[%clk 0:00:56.3]} 35... d5 {[%clk 0:00:04.9]} 36. Bd3
{[%clk 0:00:52.4]} 36... Ne3+ {[%clk 0:00:05]} 37. Kg1 {[%clk 0:00:51.6]} 37...
Nc4 {[%clk 0:00:04.7]} 38. Bd4+ {[%clk 0:00:50.7]} 38... Kg8 {[%clk 0:00:04.1]}
39. Ne7+ {[%clk 0:00:48.4]} 39... Kf7 {[%clk 0:00:04.3]} 40. Nxd5 {[%clk
0:00:48.7]} 40... Nd6 {[%clk 0:00:04.4]} 41. Nxc7 {[%clk 0:00:44.5]} 41... Rc8
{[%clk 0:00:04.5]} 42. Nd5 {[%clk 0:00:43]} 42... Rc1+ {[%clk 0:00:04.7]} 43.
Kf2 {[%clk 0:00:43]} 43... Rd1 {[%clk 0:00:04.7]} 44. Ke2 {[%clk 0:00:42.6]}
44... Rc1 {[%clk 0:00:03.5]} 45. Nf4 {[%clk 0:00:41.8]} 45... Ne8 {[%clk
0:00:02.9]} 46. Be5 {[%clk 0:00:40.4]} 46... Rc8 {[%clk 0:00:02.3]} 47. Bg6+
{[%clk 0:00:33]} 47... Kf8 {[%clk 0:00:02.8]} 48. Bf5 {[%clk 0:00:32]} 48... Rd8
{[%clk 0:00:02.6]} 49. Ne6+ {[%clk 0:00:32]} 1-0

[Event "Early-Titled-Tuesday-Blitz-April-23-2024"]
[Site "Chess.com"]
[Date "2024.04.23"]
[Round "10"]
[White "Nimrod_Veinberg"]
[Black "GM_dmitrij"]
[Result "0-1"]
[WhiteElo "2803"]
[BlackElo "3010"]
[TimeControl "180+1"]
[EndTime "10:00:55 PDT"]
[Termination "GM_dmitrij won by resignation"]

1. e4 {[%clk 0:03:00.9]} 1... e5 {[%clk 0:02:46.6]} 2. Nf3 {[%clk 0:03:00.6]}
2... Nc6 {[%clk 0:02:46.7]} 3. Bb5 {[%clk 0:03:00.2]} 3... a6 {[%clk 0:02:46.9]}
4. Ba4 {[%clk 0:02:59.7]} 4... Nf6 {[%clk 0:02:47.5]} 5. O-O {[%clk 0:02:59.3]}
5... Bc5 {[%clk 0:02:48.2]} 6. c3 {[%clk 0:02:52.8]} 6... b5 {[%clk 0:02:48.6]}
7. Bb3 {[%clk 0:02:51.9]} 7... d6 {[%clk 0:02:48.9]} 8. d4 {[%clk 0:02:51.7]}
8... Bb6 {[%clk 0:02:49.2]} 9. a4 {[%clk 0:02:52]} 9... Bg4 {[%clk 0:02:49.3]}
10. Be3 {[%clk 0:02:34.9]} 10... O-O {[%clk 0:02:46.4]} 11. Nbd2 {[%clk
0:02:31.4]} 11... exd4 {[%clk 0:02:42.3]} 12. cxd4 {[%clk 0:02:30.8]} 12... Nxd4
{[%clk 0:02:30.6]} 13. h3 {[%clk 0:02:25.2]} 13... Nxb3 {[%clk 0:02:02.7]} 14.
Qxb3 {[%clk 0:02:17.8]} 14... Bxf3 {[%clk 0:01:55.8]} 15. Nxf3 {[%clk
0:02:14.9]} 15... Bxe3 {[%clk 0:01:52.8]} 16. Qxe3 {[%clk 0:02:15]} 16... Re8
{[%clk 0:01:53.4]} 17. axb5 {[%clk 0:02:09.5]} 17... axb5 {[%clk 0:01:54.3]} 18.
Qd3 {[%clk 0:02:09.6]} 18... Nxe4 {[%clk 0:01:47.5]} 19. Qxb5 {[%clk 0:02:09.1]}
19... Rb8 {[%clk 0:01:47.2]} 20. Qa4 {[%clk 0:01:43.8]} 20... Rxb2 {[%clk
0:01:40.6]} 21. Rfe1 {[%clk 0:01:43.3]} 21... Nf6 {[%clk 0:01:10.5]} 22. Nd4
{[%clk 0:01:38.5]} 22... Rb8 {[%clk 0:00:42.1]} 23. Nc6 {[%clk 0:01:25.9]} 23...
Qd7 {[%clk 0:00:42.4]} 24. Qc4 {[%clk 0:01:13.7]} 24... Rxe1+ {[%clk 0:00:38]}
25. Rxe1 {[%clk 0:01:14.1]} 25... Re8 {[%clk 0:00:38.6]} 26. Rc1 {[%clk
0:01:14.8]} 26... h6 {[%clk 0:00:36.5]} 27. Qd3 {[%clk 0:01:08.6]} 27... d5
{[%clk 0:00:35.5]} 28. Nd4 {[%clk 0:01:07.4]} 28... Ne4 {[%clk 0:00:34]} 29. Nb3
{[%clk 0:01:03.7]} 29... c6 {[%clk 0:00:32]} 30. Qd4 {[%clk 0:00:55.8]} 30...
Qd6 {[%clk 0:00:30.2]} 31. Re1 {[%clk 0:00:50.2]} 31... Nf6 {[%clk 0:00:30.5]}
32. Rc1 {[%clk 0:00:47.6]} 32... Nd7 {[%clk 0:00:28.4]} 33. Rd1 {[%clk
0:00:41.9]} 33... Rb8 {[%clk 0:00:23.6]} 34. Nd2 {[%clk 0:00:39]} 34... Qe5
{[%clk 0:00:19]} 35. Qa7 {[%clk 0:00:35]} 35... Nf6 {[%clk 0:00:17.3]} 36. Nf3
{[%clk 0:00:32.8]} 36... Qd6 {[%clk 0:00:17.6]} 37. Nd4 {[%clk 0:00:31.2]} 37...
Re8 {[%clk 0:00:14.3]} 38. Rc1 {[%clk 0:00:28.9]} 38... c5 {[%clk 0:00:13.6]}
39. Qxc5 {[%clk 0:00:26.8]} 39... Re1+ {[%clk 0:00:12.7]} 40. Rxe1 {[%clk
0:00:21.8]} 40... Qxc5 {[%clk 0:00:13.6]} 41. Nf3 {[%clk 0:00:21.5]} 41... Ne4
{[%clk 0:00:13.7]} 42. Re2 {[%clk 0:00:22]} 42... f5 {[%clk 0:00:13.6]} 43. Kh2
{[%clk 0:00:20.5]} 43... d4 {[%clk 0:00:13.2]} 44. Ne1 {[%clk 0:00:17.6]} 44...
Qc4 {[%clk 0:00:12.5]} 45. Rc2 {[%clk 0:00:17.4]} 45... Qb3 {[%clk 0:00:11.3]}
46. g3 {[%clk 0:00:14.7]} 46... d3 {[%clk 0:00:11.2]} 47. Rc8+ {[%clk
0:00:14.4]} 47... Kh7 {[%clk 0:00:11.8]} 48. Rd8 {[%clk 0:00:14.2]} 48... d2
{[%clk 0:00:11.9]} 0-1

[Event "Early-Titled-Tuesday-Blitz-April-23-2024"]
[Site "Chess.com"]
[Date "2024.04.23"]
[Round "10"]
[White "RianKapriaga"]
[Black "manmanlai1"]
[Result "0-1"]
[WhiteElo "2302"]
[BlackElo "2508"]
[TimeControl "180+1"]
[EndTime "10:01:00 PDT"]
[Termination "manmanlai1 won on time"]

1. d4 {[%clk 0:03:00.9]} 1... Nf6 {[%clk 0:02:58.4]} 2. Nf3 {[%clk 0:03:01]}
2... e6 {[%clk 0:02:57.7]} 3. e3 {[%clk 0:03:00.8]} 3... b6 {[%clk 0:02:53.5]}
4. Bd3 {[%clk 0:03:01]} 4... Bb7 {[%clk 0:02:53.8]} 5. O-O {[%clk 0:03:00.9]}
5... Be7 {[%clk 0:02:50.7]} 6. c4 {[%clk 0:03:01.4]} 6... O-O {[%clk 0:02:51.1]}
7. Nc3 {[%clk 0:03:01.9]} 7... d6 {[%clk 0:02:51.3]} 8. e4 {[%clk 0:03:01.5]}
8... c5 {[%clk 0:02:50.8]} 9. d5 {[%clk 0:02:58.8]} 9... exd5 {[%clk 0:02:47.9]}
10. exd5 {[%clk 0:02:57.8]} 10... Bc8 {[%clk 0:02:45.1]} 11. h3 {[%clk
0:02:56.6]} 11... Re8 {[%clk 0:02:42.2]} 12. Bf4 {[%clk 0:02:50.9]} 12... Nbd7
{[%clk 0:02:37.7]} 13. Re1 {[%clk 0:02:50.3]} 13... Nf8 {[%clk 0:02:37.6]} 14.
Qc2 {[%clk 0:02:40.2]} 14... a6 {[%clk 0:02:36.6]} 15. a4 {[%clk 0:02:39.4]}
15... Ng6 {[%clk 0:02:35.5]} 16. Bh2 {[%clk 0:02:37.4]} 16... Bd7 {[%clk
0:02:35.3]} 17. Re3 {[%clk 0:02:31]} 17... Bf8 {[%clk 0:02:35.1]} 18. Rae1
{[%clk 0:02:29.8]} 18... Rxe3 {[%clk 0:02:35.4]} 19. Rxe3 {[%clk 0:02:30.7]}
19... Qc7 {[%clk 0:02:35.4]} 20. b3 {[%clk 0:02:27.8]} 20... Re8 {[%clk
0:02:35.7]} 21. Qe2 {[%clk 0:02:17.2]} 21... Rxe3 {[%clk 0:02:34.9]} 22. Qxe3
{[%clk 0:02:16.9]} 22... Qc8 {[%clk 0:02:32.9]} 23. Ng5 {[%clk 0:02:08.1]} 23...
Bf5 {[%clk 0:02:30.7]} 24. Bg3 {[%clk 0:01:56]} 24... Bxd3 {[%clk 0:02:29.6]}
25. Qxd3 {[%clk 0:01:56.9]} 25... Qd7 {[%clk 0:02:22.5]} 26. Nge4 {[%clk
0:01:54.3]} 26... Nxe4 {[%clk 0:02:21.4]} 27. Nxe4 {[%clk 0:01:53.7]} 27... Be7
{[%clk 0:02:18.2]} 28. Qf3 {[%clk 0:01:49.5]} 28... f5 {[%clk 0:02:16]} 29. Nd2
{[%clk 0:01:36.4]} 29... Bf6 {[%clk 0:02:15.9]} 30. Nf1 {[%clk 0:01:36]} 30...
Be5 {[%clk 0:02:09.5]} 31. Bxe5 {[%clk 0:01:31]} 31... Nxe5 {[%clk 0:02:08.8]}
32. Qe2 {[%clk 0:01:30]} 32... g6 {[%clk 0:02:06.9]} 33. f4 {[%clk 0:01:28.8]}
33... Nf7 {[%clk 0:02:05.7]} 34. Qe6 {[%clk 0:01:15.9]} 34... Qd8 {[%clk
0:01:29.4]} 35. Nd2 {[%clk 0:01:08.2]} 35... Kf8 {[%clk 0:01:27.8]} 36. Nf3
{[%clk 0:01:08]} 36... Qe8 {[%clk 0:01:25.9]} 37. Qxe8+ {[%clk 0:00:33.1]} 37...
Kxe8 {[%clk 0:01:26.8]} 38. g4 {[%clk 0:00:25.8]} 38... Ke7 {[%clk 0:01:19.5]}
39. gxf5 {[%clk 0:00:22.9]} 39... gxf5 {[%clk 0:01:20.4]} 40. Ng5 {[%clk
0:00:20.4]} 40... Nxg5 {[%clk 0:00:30]} 41. fxg5 {[%clk 0:00:21.3]} 41... Kf7
{[%clk 0:00:30.5]} 42. Kg2 {[%clk 0:00:19.5]} 42... Kg6 {[%clk 0:00:31]} 43. h4
{[%clk 0:00:19.5]} 43... f4 {[%clk 0:00:31.2]} 44. Kh2 {[%clk 0:00:06.1]} 44...
Kf5 {[%clk 0:00:27.3]} 45. Kh3 {[%clk 0:00:04.1]} 45... a5 {[%clk 0:00:27.5]}
0-1